[Event "Early-Titled-Tuesday-Blitz-December-26-2023"]
[Site "Chess.com"]
[Date "2023.12.26"]
[Round "3"]
[White "GMJustin"]
[Black "tantaan"]
[Result "0-1"]
[WhiteElo "2242"]
[BlackElo "2470"]
[TimeControl "180+1"]
[EndTime "8:28:07 PST"]
[Termination "tantaan won on time"]

1. e4 {[%clk 0:02:50.4]} 1... c5 {[%clk 0:02:59.2]} 2. Nf3 {[%clk 0:02:49.4]}
2... e6 {[%clk 0:02:59.5]} 3. d4 {[%clk 0:02:46.6]} 3... cxd4 {[%clk 0:02:59.6]}
4. Nxd4 {[%clk 0:02:47]} 4... Nf6 {[%clk 0:03:00.3]} 5. Nc3 {[%clk 0:02:46]}
5... Nc6 {[%clk 0:03:00.8]} 6. Qd3 {[%clk 0:02:32]} 6... Bb4 {[%clk 0:02:59.6]}
7. Nxc6 {[%clk 0:02:28.8]} 7... bxc6 {[%clk 0:02:58.6]} 8. e5 {[%clk 0:02:11.6]}
8... Nd5 {[%clk 0:02:57.4]} 9. Bd2 {[%clk 0:02:09]} 9... Qa5 {[%clk 0:02:57.1]}
10. Ne4 {[%clk 0:01:43.2]} 10... Nf4 {[%clk 0:02:34.9]} 11. Qd6 {[%clk
0:01:24.5]} 11... Bxd2+ {[%clk 0:02:02.6]} 12. Nxd2 {[%clk 0:01:24.3]} 12... Ng6
{[%clk 0:01:59.2]} 13. O-O-O {[%clk 0:01:17]} 13... Qxe5 {[%clk 0:01:51.5]} 14.
Qa3 {[%clk 0:00:50.7]} 14... d5 {[%clk 0:01:35.2]} 15. Nf3 {[%clk 0:00:45.2]}
15... Qf4+ {[%clk 0:01:33.3]} 16. Kb1 {[%clk 0:00:43.4]} 16... Rb8 {[%clk
0:01:33.6]} 17. Qxa7 {[%clk 0:00:36.3]} 17... O-O {[%clk 0:01:31.8]} 18. h4
{[%clk 0:00:20.4]} 18... Qb4 {[%clk 0:01:26.2]} 19. Qd4 {[%clk 0:00:18.7]} 19...
Qxd4 {[%clk 0:01:16.9]} 20. Nxd4 {[%clk 0:00:18.7]} 20... c5 {[%clk 0:01:16]}
21. Nf3 {[%clk 0:00:17.9]} 21... Rb6 {[%clk 0:01:04.3]} 22. h5 {[%clk
0:00:17.2]} 22... Ne7 {[%clk 0:01:03.1]} 23. c4 {[%clk 0:00:15.5]} 23... Ba6
{[%clk 0:00:59.6]} 24. cxd5 {[%clk 0:00:14.3]} 24... Bxf1 {[%clk 0:01:00.2]} 25.
Rhxf1 {[%clk 0:00:13.8]} 25... exd5 {[%clk 0:01:00.4]} 26. Rfe1 {[%clk
0:00:13.4]} 26... Rb7 {[%clk 0:00:58.2]} 27. Re5 {[%clk 0:00:10.2]} 27... f6
{[%clk 0:00:55.6]} 28. Re6 {[%clk 0:00:09.8]} 28... Kf7 {[%clk 0:00:50]} 29. Rd6
{[%clk 0:00:08.2]} 29... Rfb8 {[%clk 0:00:49.5]} 30. Rd2 {[%clk 0:00:07.9]}
30... c4 {[%clk 0:00:41.3]} 31. Kc1 {[%clk 0:00:07.1]} 31... Rb6 {[%clk
0:00:18.5]} 32. Rd7 {[%clk 0:00:06.9]} 32... Ke6 {[%clk 0:00:17.4]} 33. Ra7
{[%clk 0:00:05.8]} 33... R8b7 {[%clk 0:00:16.1]} 34. Re2+ {[%clk 0:00:05.7]}
34... Kd6 {[%clk 0:00:15.2]} 35. Rxb7 {[%clk 0:00:04.7]} 35... Rxb7 {[%clk
0:00:15.6]} 36. Nd4 {[%clk 0:00:05.1]} 36... Nc6 {[%clk 0:00:15.1]} 37. Nf5+
{[%clk 0:00:04.7]} 37... Kc5 {[%clk 0:00:15]} 38. h6 {[%clk 0:00:04.5]} 38... g6
{[%clk 0:00:13.4]} 39. Ng7 {[%clk 0:00:04.7]} 39... Ne5 {[%clk 0:00:12.5]} 40.
Ne6+ {[%clk 0:00:04.5]} 40... Kd6 {[%clk 0:00:11.5]} 41. Nd4 {[%clk 0:00:04.5]}
41... Nd3+ {[%clk 0:00:10.8]} 42. Kb1 {[%clk 0:00:04.7]} 42... c3 {[%clk
0:00:10]} 43. b3 {[%clk 0:00:04.1]} 43... Kc5 {[%clk 0:00:08.1]} 44. Nc2 {[%clk
0:00:04.1]} 44... Nb4 {[%clk 0:00:07.6]} 45. Re6 {[%clk 0:00:01.4]} 45... Nxc2
{[%clk 0:00:05.3]} 46. Kxc2 {[%clk 0:00:01.2]} 46... d4 {[%clk 0:00:06.2]} 0-1

[Event "Early-Titled-Tuesday-Blitz-December-26-2023"]
[Site "Chess.com"]
[Date "2023.12.26"]
[Round "3"]
[White "Nechitaylo_Nikita"]
[Black "JAN2404"]
[Result "0-1"]
[WhiteElo "2292"]
[BlackElo "1958"]
[TimeControl "180+1"]
[EndTime "8:28:07 PST"]
[Termination "JAN2404 won on time"]

1. d4 {[%clk 0:03:00.9]} 1... Nf6 {[%clk 0:02:55.3]} 2. c4 {[%clk 0:03:01.1]}
2... g6 {[%clk 0:02:55.2]} 3. f3 {[%clk 0:03:00.5]} 3... Bg7 {[%clk 0:02:55.7]}
4. e4 {[%clk 0:03:00.5]} 4... d6 {[%clk 0:02:55.4]} 5. Be3 {[%clk 0:03:01.1]}
5... c5 {[%clk 0:02:54]} 6. dxc5 {[%clk 0:03:00.5]} 6... Qa5+ {[%clk 0:02:52.1]}
7. Nc3 {[%clk 0:02:58.7]} 7... dxc5 {[%clk 0:02:49.9]} 8. Qd2 {[%clk 0:02:20]}
8... Nc6 {[%clk 0:02:43.8]} 9. Nd5 {[%clk 0:02:15.2]} 9... Nxd5 {[%clk
0:02:41.7]} 10. cxd5 {[%clk 0:02:06.9]} 10... Qxd2+ {[%clk 0:02:37.6]} 11. Kxd2
{[%clk 0:02:07.8]} 11... Nd4 {[%clk 0:02:24.7]} 12. Rc1 {[%clk 0:01:45.8]} 12...
b6 {[%clk 0:02:20]} 13. b3 {[%clk 0:01:30.1]} 13... a5 {[%clk 0:02:08.2]} 14.
Ne2 {[%clk 0:01:23.8]} 14... a4 {[%clk 0:02:02]} 15. Nxd4 {[%clk 0:01:14.6]}
15... cxd4 {[%clk 0:02:01.5]} 16. Bf2 {[%clk 0:01:05]} 16... axb3 {[%clk
0:01:59.3]} 17. axb3 {[%clk 0:01:05.9]} 17... Bh6+ {[%clk 0:01:41.5]} 18. Kc2
{[%clk 0:01:02.9]} 18... Bxc1 {[%clk 0:01:12.7]} 19. Bxd4 {[%clk 0:01:02.2]}
19... O-O {[%clk 0:01:10.1]} 20. Kxc1 {[%clk 0:00:55.7]} 20... Ba6 {[%clk
0:01:05.2]} 21. Kb2 {[%clk 0:00:49]} 21... Bxf1 {[%clk 0:00:33.3]} 22. Rxf1
{[%clk 0:00:49.9]} 22... b5 {[%clk 0:00:33.4]} 23. Bc5 {[%clk 0:00:40.9]} 23...
Rfe8 {[%clk 0:00:26.6]} 24. e5 {[%clk 0:00:38.8]} 24... f6 {[%clk 0:00:23.3]}
25. e6 {[%clk 0:00:33.8]} 25... Red8 {[%clk 0:00:20.8]} 26. Rd1 {[%clk
0:00:14.7]} 26... Kf8 {[%clk 0:00:19.6]} 27. g4 {[%clk 0:00:12.7]} 27... Ra6
{[%clk 0:00:13.9]} 28. f4 {[%clk 0:00:11.6]} 28... Rda8 {[%clk 0:00:14]} 29. Kc3
{[%clk 0:00:09]} 29... Ra2 {[%clk 0:00:12.8]} 30. d6 {[%clk 0:00:09.4]} 30...
exd6 {[%clk 0:00:11.5]} 31. Rxd6 {[%clk 0:00:10.3]} 31... Ke8 {[%clk 0:00:10]}
32. e7 {[%clk 0:00:06.4]} 32... Rc8 {[%clk 0:00:09.8]} 33. Kb4 {[%clk
0:00:04.4]} 33... Rc2 {[%clk 0:00:08.9]} 34. Rd8+ {[%clk 0:00:02.5]} 34... Rxd8
{[%clk 0:00:08.5]} 35. exd8=Q+ {[%clk 0:00:03.2]} 35... Kxd8 {[%clk 0:00:09.3]}
36. Kxb5 {[%clk 0:00:03.3]} 36... Kd7 {[%clk 0:00:09.1]} 37. Bg1 {[%clk
0:00:02.7]} 37... Rg2 {[%clk 0:00:07.8]} 38. Bd4 {[%clk 0:00:03.4]} 38... Rxg4
{[%clk 0:00:07.4]} 39. Bxf6 {[%clk 0:00:03.1]} 39... Rxf4 {[%clk 0:00:08.1]} 40.
Be5 {[%clk 0:00:02.5]} 40... Rf3 {[%clk 0:00:07.8]} 41. b4 {[%clk 0:00:02.5]}
41... Ke6 {[%clk 0:00:08]} 42. Bg3 {[%clk 0:00:02.4]} 42... Kd5 {[%clk 0:00:08]}
43. Kb6 {[%clk 0:00:02]} 43... Rc3 {[%clk 0:00:07.8]} 44. b5 {[%clk 0:00:02.2]}
44... h5 {[%clk 0:00:06.4]} 45. Ka7 {[%clk 0:00:01.8]} 45... Rb3 {[%clk
0:00:05.4]} 46. b6 {[%clk 0:00:02]} 46... Kc6 {[%clk 0:00:06.1]} 47. Bc7 {[%clk
0:00:01.5]} 47... g5 {[%clk 0:00:05.4]} 0-1

[Event "Early-Titled-Tuesday-Blitz-December-26-2023"]
[Site "Chess.com"]
[Date "2023.12.26"]
[Round "3"]
[White "Kirill_Klukin"]
[Black "kakarot_001"]
[Result "1-0"]
[WhiteElo "2840"]
[BlackElo "2662"]
[TimeControl "180+1"]
[EndTime "8:28:09 PST"]
[Termination "Kirill_Klukin won by checkmate"]

1. d4 {[%clk 0:03:00.9]} 1... d5 {[%clk 0:02:57.6]} 2. c4 {[%clk 0:03:00.7]}
2... c6 {[%clk 0:02:56.7]} 3. Nc3 {[%clk 0:02:59]} 3... Nf6 {[%clk 0:02:56.6]}
4. Nf3 {[%clk 0:02:59.1]} 4... dxc4 {[%clk 0:02:51]} 5. e3 {[%clk 0:02:59.2]}
5... b5 {[%clk 0:02:39.2]} 6. a4 {[%clk 0:02:59.8]} 6... b4 {[%clk 0:02:39.7]}
7. Na2 {[%clk 0:03:00.4]} 7... e6 {[%clk 0:02:40.4]} 8. Bxc4 {[%clk 0:03:00.9]}
8... Be7 {[%clk 0:02:41.1]} 9. O-O {[%clk 0:03:01.5]} 9... O-O {[%clk
0:02:41.8]} 10. Qe2 {[%clk 0:03:02.3]} 10... Nbd7 {[%clk 0:02:42.2]} 11. Rd1
{[%clk 0:03:03]} 11... Qc7 {[%clk 0:02:40]} 12. Bd2 {[%clk 0:03:03.3]} 12... a5
{[%clk 0:02:39.2]} 13. Nc1 {[%clk 0:03:02.8]} 13... c5 {[%clk 0:02:27.8]} 14.
Nb3 {[%clk 0:03:01.7]} 14... Nb6 {[%clk 0:02:28]} 15. Bb5 {[%clk 0:03:01.5]}
15... c4 {[%clk 0:02:06.1]} 16. Rac1 {[%clk 0:02:57.2]} 16... Qb8 {[%clk
0:01:56.2]} 17. Nc5 {[%clk 0:02:49.7]} 17... Bb7 {[%clk 0:01:44.5]} 18. Nxb7
{[%clk 0:02:46.4]} 18... Qxb7 {[%clk 0:01:45.4]} 19. Ne5 {[%clk 0:02:47.1]}
19... Rac8 {[%clk 0:01:28.7]} 20. Nxc4 {[%clk 0:02:46.8]} 20... Nxc4 {[%clk
0:01:23.5]} 21. Bxc4 {[%clk 0:02:44.6]} 21... Qe4 {[%clk 0:01:16]} 22. f3 {[%clk
0:02:35.9]} 22... Qg6 {[%clk 0:01:15.2]} 23. Be1 {[%clk 0:02:35.2]} 23... Nd5
{[%clk 0:01:10.7]} 24. Bg3 {[%clk 0:02:27.3]} 24... Bg5 {[%clk 0:01:07.1]} 25.
f4 {[%clk 0:02:13.6]} 25... Be7 {[%clk 0:01:04.2]} 26. Qf3 {[%clk 0:02:08.4]}
26... Nb6 {[%clk 0:00:59.5]} 27. Bb5 {[%clk 0:02:08.4]} 27... Bf6 {[%clk
0:00:48.3]} 28. h3 {[%clk 0:01:44.8]} 28... h5 {[%clk 0:00:47.5]} 29. Bf2 {[%clk
0:01:43.9]} 29... h4 {[%clk 0:00:45.5]} 30. Bd3 {[%clk 0:01:35.9]} 30... Qh6
{[%clk 0:00:43.6]} 31. Rxc8 {[%clk 0:01:32.8]} 31... Nxc8 {[%clk 0:00:34.8]} 32.
Rc1 {[%clk 0:01:24.4]} 32... Nb6 {[%clk 0:00:34.9]} 33. Rc5 {[%clk 0:01:22.7]}
33... g6 {[%clk 0:00:26.1]} 34. Rxa5 {[%clk 0:01:16.9]} 34... Rc8 {[%clk
0:00:26.7]} 35. Rc5 {[%clk 0:01:16.8]} 35... Rxc5 {[%clk 0:00:26.2]} 36. dxc5
{[%clk 0:01:17.3]} 36... Nxa4 {[%clk 0:00:27.1]} 37. Qa8+ {[%clk 0:01:16.6]}
37... Qf8 {[%clk 0:00:25.4]} 38. Qxa4 {[%clk 0:01:13.5]} 38... Qxc5 {[%clk
0:00:26]} 39. Qc2 {[%clk 0:01:13.1]} 39... Qa5 {[%clk 0:00:19.3]} 40. b3 {[%clk
0:01:07.7]} 40... Qa1+ {[%clk 0:00:18.8]} 41. Kh2 {[%clk 0:01:04.9]} 41... Kg7
{[%clk 0:00:18.9]} 42. Bc4 {[%clk 0:01:03.3]} 42... g5 {[%clk 0:00:14]} 43. Qe2
{[%clk 0:01:02.2]} 43... gxf4 {[%clk 0:00:08.4]} 44. Qg4+ {[%clk 0:01:01.2]}
44... Kf8 {[%clk 0:00:08.6]} 45. exf4 {[%clk 0:01:00.3]} 45... Qb2 {[%clk
0:00:08.1]} 46. Bxh4 {[%clk 0:00:47.5]} 46... Bd4 {[%clk 0:00:05.8]} 47. Qf3
{[%clk 0:00:45.1]} 47... Qa1 {[%clk 0:00:05.8]} 48. Bf2 {[%clk 0:00:45.2]} 48...
Bf6 {[%clk 0:00:04.8]} 49. Bc5+ {[%clk 0:00:45.2]} 49... Kg7 {[%clk 0:00:04.5]}
50. Qg4+ {[%clk 0:00:45.2]} 50... Kh6 {[%clk 0:00:04.9]} 51. Bf8+ {[%clk
0:00:42.9]} 51... Kh7 {[%clk 0:00:04.5]} 52. Bd3+ {[%clk 0:00:39.7]} 52... Kh8
{[%clk 0:00:04.4]} 53. Bxb4 {[%clk 0:00:38.7]} 53... Bd4 {[%clk 0:00:04.1]} 54.
Qh5+ {[%clk 0:00:32.6]} 54... Kg7 {[%clk 0:00:04.6]} 55. Qg5+ {[%clk 0:00:32.9]}
55... Kh8 {[%clk 0:00:05.1]} 56. Qh6+ {[%clk 0:00:32.5]} 56... Kg8 {[%clk
0:00:05.6]} 57. Qh7# {[%clk 0:00:33.1]} 1-0

[Event "Early-Titled-Tuesday-Blitz-December-26-2023"]
[Site "Chess.com"]
[Date "2023.12.26"]
[Round "3"]
[White "SaqoChess_Twitch"]
[Black "CarlosjPineror"]
[Result "0-1"]
[WhiteElo "2645"]
[BlackElo "2495"]
[TimeControl "180+1"]
[EndTime "8:28:18 PST"]
[Termination "CarlosjPineror won by checkmate"]

1. d4 {[%clk 0:03:00.9]} 1... Nf6 {[%clk 0:02:59.4]} 2. c4 {[%clk 0:03:01.5]}
2... g6 {[%clk 0:02:59.4]} 3. Nc3 {[%clk 0:03:02.4]} 3... Bg7 {[%clk 0:02:59.4]}
4. Nf3 {[%clk 0:03:03.3]} 4... d6 {[%clk 0:02:59.9]} 5. h3 {[%clk 0:03:01.3]}
5... O-O {[%clk 0:02:59.8]} 6. Bf4 {[%clk 0:03:02]} 6... Nc6 {[%clk 0:02:58.9]}
7. e3 {[%clk 0:03:02.4]} 7... Nd7 {[%clk 0:02:59.4]} 8. Be2 {[%clk 0:03:02.5]}
8... e5 {[%clk 0:03:00]} 9. dxe5 {[%clk 0:03:02.9]} 9... dxe5 {[%clk 0:03:00]}
10. Bg3 {[%clk 0:03:03.5]} 10... h6 {[%clk 0:02:58.6]} 11. Qc2 {[%clk
0:03:03.1]} 11... f5 {[%clk 0:02:57.9]} 12. h4 {[%clk 0:02:57.6]} 12... Nb4
{[%clk 0:01:56.2]} 13. Qb3 {[%clk 0:02:56.8]} 13... a5 {[%clk 0:01:56]} 14. a3
{[%clk 0:02:56]} 14... Nc5 {[%clk 0:01:55.8]} 15. Qd1 {[%clk 0:02:48.4]} 15...
Nbd3+ {[%clk 0:01:54.6]} 16. Bxd3 {[%clk 0:02:44.7]} 16... Nxd3+ {[%clk
0:01:54.3]} 17. Ke2 {[%clk 0:02:44.5]} 17... e4 {[%clk 0:01:52.9]} 18. Ne1
{[%clk 0:02:36.5]} 18... Nxb2 {[%clk 0:01:46.5]} 19. Qb3 {[%clk 0:02:32.8]}
19... Be6 {[%clk 0:01:39.3]} 20. Nd5 {[%clk 0:02:19.3]} 20... Nxc4 {[%clk
0:01:35.9]} 21. Nxc7 {[%clk 0:02:01.4]} 21... Qd2+ {[%clk 0:00:45.1]} 22. Kf1
{[%clk 0:02:00.7]} 22... Bf7 {[%clk 0:00:45.6]} 23. Rd1 {[%clk 0:01:39.9]} 23...
Rad8 {[%clk 0:00:45.2]} 24. Rb1 {[%clk 0:01:29.5]} 24... Qd7 {[%clk 0:00:32]}
25. Kg1 {[%clk 0:01:18]} 25... Nd2 {[%clk 0:00:31.3]} 26. Qb6 {[%clk 0:01:07.3]}
26... Nxb1 {[%clk 0:00:30.4]} 27. h5 {[%clk 0:01:07.9]} 27... gxh5 {[%clk
0:00:22.7]} 28. Qxb1 {[%clk 0:00:37.3]} 28... Qd1 {[%clk 0:00:22.1]} 29. Qb5
{[%clk 0:00:37.5]} 29... Qxe1+ {[%clk 0:00:21.7]} 30. Kh2 {[%clk 0:00:38.2]}
30... Qd2 {[%clk 0:00:16.4]} 31. Qxf5 {[%clk 0:00:38.7]} 31... Qd7 {[%clk
0:00:16.6]} 32. Qxe4 {[%clk 0:00:38]} 32... Bd5 {[%clk 0:00:12.9]} 33. Qg6
{[%clk 0:00:32.2]} 33... Qf7 {[%clk 0:00:11.8]} 34. Qb6 {[%clk 0:00:30.6]} 34...
Bc6 {[%clk 0:00:10.5]} 35. Rc1 {[%clk 0:00:29.6]} 35... h4 {[%clk 0:00:09.6]}
36. Bf4 {[%clk 0:00:29.3]} 36... Rd2 {[%clk 0:00:06.6]} 37. Kg1 {[%clk
0:00:25.1]} 37... Rd7 {[%clk 0:00:05.7]} 38. Na6 {[%clk 0:00:20.8]} 38... Bxg2
{[%clk 0:00:04.4]} 39. Nc5 {[%clk 0:00:19.9]} 39... Bc6 {[%clk 0:00:03.5]} 40.
Nxd7 {[%clk 0:00:20]} 40... Qg6+ {[%clk 0:00:03.6]} 41. Kf1 {[%clk 0:00:19.8]}
41... Qg2+ {[%clk 0:00:03.4]} 42. Ke2 {[%clk 0:00:20.3]} 42... Bxd7 {[%clk
0:00:03.8]} 43. Qb3+ {[%clk 0:00:18.6]} 43... Kh8 {[%clk 0:00:04]} 44. Rc7
{[%clk 0:00:16.2]} 44... Bg4+ {[%clk 0:00:04.3]} 45. Kd3 {[%clk 0:00:15.1]}
45... Rd8+ {[%clk 0:00:05.2]} 46. Kc2 {[%clk 0:00:08.5]} 46... Qxf2+ {[%clk
0:00:05.4]} 47. Kb1 {[%clk 0:00:08.2]} 47... Rd1+ {[%clk 0:00:04.9]} 48. Rc1
{[%clk 0:00:05.7]} 48... Bf5+ {[%clk 0:00:05.1]} 49. e4 {[%clk 0:00:06.2]} 49...
Bxe4+ {[%clk 0:00:05.2]} 50. Qd3 {[%clk 0:00:04.9]} 50... Bxd3# {[%clk
0:00:05.1]} 0-1

[Event "Early-Titled-Tuesday-Blitz-December-26-2023"]
[Site "Chess.com"]
[Date "2023.12.26"]
[Round "3"]
[White "ketster"]
[Black "Msb2"]
[Result "0-1"]
[WhiteElo "2540"]
[BlackElo "3013"]
[TimeControl "180+1"]
[EndTime "8:28:22 PST"]
[Termination "Msb2 won on time"]

1. d4 {[%clk 0:03:00.9]} 1... d5 {[%clk 0:02:59.2]} 2. c3 {[%clk 0:02:59.7]}
2... e6 {[%clk 0:02:58.9]} 3. Nf3 {[%clk 0:02:59.2]} 3... c5 {[%clk 0:02:59.2]}
4. g3 {[%clk 0:02:58.2]} 4... Nc6 {[%clk 0:02:59.3]} 5. Bg2 {[%clk 0:02:58.3]}
5... Nf6 {[%clk 0:02:59.8]} 6. O-O {[%clk 0:02:57.5]} 6... Be7 {[%clk
0:03:00.3]} 7. b3 {[%clk 0:02:51.5]} 7... O-O {[%clk 0:03:00.4]} 8. Bb2 {[%clk
0:02:52.1]} 8... b6 {[%clk 0:03:00.2]} 9. Nbd2 {[%clk 0:02:51.4]} 9... cxd4
{[%clk 0:02:57.1]} 10. cxd4 {[%clk 0:02:48.9]} 10... Ba6 {[%clk 0:02:57.5]} 11.
Re1 {[%clk 0:02:43.2]} 11... Rc8 {[%clk 0:02:57.3]} 12. a3 {[%clk 0:02:39.3]}
12... h6 {[%clk 0:02:56.4]} 13. b4 {[%clk 0:02:34.9]} 13... Bd6 {[%clk
0:02:54.1]} 14. Qa4 {[%clk 0:02:29.7]} 14... Bb7 {[%clk 0:02:54.3]} 15. Rac1
{[%clk 0:02:26.9]} 15... Qd7 {[%clk 0:02:51.3]} 16. Qb3 {[%clk 0:02:19.3]} 16...
Rc7 {[%clk 0:02:49.5]} 17. Ne5 {[%clk 0:02:14.1]} 17... Qe7 {[%clk 0:02:47.6]}
18. e4 {[%clk 0:01:52.2]} 18... Bxe5 {[%clk 0:02:38]} 19. dxe5 {[%clk 0:01:49]}
19... Nxe4 {[%clk 0:02:38.2]} 20. Nxe4 {[%clk 0:01:45.6]} 20... dxe4 {[%clk
0:02:39.1]} 21. Bxe4 {[%clk 0:01:44.4]} 21... Nd4 {[%clk 0:02:39.6]} 22. Rxc7
{[%clk 0:01:37.4]} 22... Qxc7 {[%clk 0:02:29.2]} 23. Bxd4 {[%clk 0:01:35.4]}
23... Bxe4 {[%clk 0:02:30.1]} 24. Rxe4 {[%clk 0:01:34.5]} 24... Qc1+ {[%clk
0:02:30.8]} 25. Kg2 {[%clk 0:01:34]} 25... Rd8 {[%clk 0:02:31.6]} 26. Qc3 {[%clk
0:01:21.8]} 26... Qd1 {[%clk 0:02:29.4]} 27. f3 {[%clk 0:01:12.5]} 27... Kh7
{[%clk 0:02:22.4]} 28. Bf2 {[%clk 0:01:06.9]} 28... Rd2 {[%clk 0:02:20.5]} 29.
Rd4 {[%clk 0:01:06]} 29... Rxd4 {[%clk 0:02:01.4]} 30. Qxd4 {[%clk 0:01:06.9]}
30... Qb3 {[%clk 0:02:01.7]} 31. Qe3 {[%clk 0:01:01]} 31... Qb2 {[%clk
0:01:59.7]} 32. Qd3+ {[%clk 0:00:58.1]} 32... Kg8 {[%clk 0:01:59.3]} 33. f4
{[%clk 0:00:52.5]} 33... Qa2 {[%clk 0:01:59.1]} 34. b5 {[%clk 0:00:48.2]} 34...
Qb2 {[%clk 0:01:57.2]} 35. Kf3 {[%clk 0:00:47.3]} 35... Qa2 {[%clk 0:01:57.1]}
36. h4 {[%clk 0:00:43.7]} 36... Qa1 {[%clk 0:01:57.5]} 37. Kg2 {[%clk
0:00:36.6]} 37... Qa2 {[%clk 0:01:57.6]} 38. Qf3 {[%clk 0:00:31.2]} 38... Kh7
{[%clk 0:01:54.1]} 39. Qe4+ {[%clk 0:00:25.7]} 39... g6 {[%clk 0:01:52.6]} 40.
Qa4 {[%clk 0:00:25.7]} 40... Qd5+ {[%clk 0:01:52.3]} 41. Kg1 {[%clk 0:00:24.9]}
41... Qd7 {[%clk 0:01:50]} 42. Qd4 {[%clk 0:00:23.6]} 42... Qxb5 {[%clk
0:01:49.8]} 43. h5 {[%clk 0:00:20.2]} 43... Qb1+ {[%clk 0:01:48.1]} 44. Kg2
{[%clk 0:00:18.6]} 44... gxh5 {[%clk 0:01:48.6]} 45. Qd7 {[%clk 0:00:17.4]}
45... Qe4+ {[%clk 0:01:48.7]} 46. Kg1 {[%clk 0:00:16.9]} 46... Qb1+ {[%clk
0:01:47.3]} 47. Kh2 {[%clk 0:00:14.7]} 47... Kg7 {[%clk 0:01:44.8]} 48. Qxa7
{[%clk 0:00:14.7]} 48... Qb2 {[%clk 0:01:45.3]} 49. Kg2 {[%clk 0:00:10.6]} 49...
b5 {[%clk 0:01:43.5]} 50. Qc5 {[%clk 0:00:10.4]} 50... Qb1 {[%clk 0:01:42.5]}
51. Qb4 {[%clk 0:00:10]} 51... Qd3 {[%clk 0:01:42.1]} 52. Qc5 {[%clk 0:00:07.2]}
52... Qe4+ {[%clk 0:01:42.2]} 53. Kg1 {[%clk 0:00:07.7]} 53... Qb1+ {[%clk
0:01:42.3]} 54. Kh2 {[%clk 0:00:08.3]} 54... Qd3 {[%clk 0:01:41.7]} 55. Qe3
{[%clk 0:00:08.6]} 55... Qc2 {[%clk 0:01:41.6]} 56. Kg2 {[%clk 0:00:07.7]} 56...
Qb2 {[%clk 0:01:42.1]} 57. Qf3 {[%clk 0:00:07.2]} 57... Qb1 {[%clk 0:01:40.4]}
58. Kh2 {[%clk 0:00:06.7]} 58... Kg6 {[%clk 0:01:38.5]} 59. Kg2 {[%clk
0:00:06.3]} 59... Qb2 {[%clk 0:01:35.8]} 60. Qe3 {[%clk 0:00:06.4]} 60... Qb1
{[%clk 0:01:35.2]} 61. Qc3 {[%clk 0:00:06.1]} 61... Qe4+ {[%clk 0:01:34.8]} 62.
Kg1 {[%clk 0:00:06.1]} 62... Qb1+ {[%clk 0:01:35]} 63. Kh2 {[%clk 0:00:05.5]}
63... Kg7 {[%clk 0:01:32.1]} 64. Qb4 {[%clk 0:00:05]} 64... Qc2 {[%clk
0:01:32.6]} 65. Kg2 {[%clk 0:00:04.9]} 65... Qc6+ {[%clk 0:01:32.9]} 66. Kg1
{[%clk 0:00:05.2]} 66... Qc1+ {[%clk 0:01:33.3]} 67. Kg2 {[%clk 0:00:04.8]}
67... Qc6+ {[%clk 0:01:33.2]} 68. Kh2 {[%clk 0:00:05.3]} 68... Qc2 {[%clk
0:01:33.3]} 69. Qd4 {[%clk 0:00:03.4]} 69... Qb3 {[%clk 0:01:32.5]} 70. Qc5
{[%clk 0:00:03.8]} 70... Qf3 {[%clk 0:01:29.4]} 71. Qe3 {[%clk 0:00:03.8]} 71...
Qd1 {[%clk 0:01:29.1]} 72. Kg2 {[%clk 0:00:02.5]} 72... Qd5+ {[%clk 0:01:28.9]}
73. Qf3 {[%clk 0:00:03.2]} 73... Qa2 {[%clk 0:01:29.8]} 74. Qxh5 {[%clk
0:00:02.5]} 74... Qxa3 {[%clk 0:01:29.1]} 75. Qg4+ {[%clk 0:00:03.1]} 75... Kh7
{[%clk 0:01:29.7]} 76. Qh4 {[%clk 0:00:02.8]} 76... b4 {[%clk 0:01:26.3]} 77.
Qf6 {[%clk 0:00:02.9]} 77... Qa8+ {[%clk 0:01:26.7]} 78. Kg1 {[%clk 0:00:01.9]}
78... Qb7 {[%clk 0:01:27.6]} 79. Be3 {[%clk 0:00:01.3]} 79... b3 {[%clk
0:01:24.7]} 80. f5 {[%clk 0:00:01.7]} 80... b2 {[%clk 0:01:23.5]} 81. Qxh6+
{[%clk 0:00:01.8]} 81... Kg8 {[%clk 0:01:24.4]} 82. Qg5+ {[%clk 0:00:02]} 82...
Kf8 {[%clk 0:01:23.9]} 83. Bc5+ {[%clk 0:00:02.1]} 83... Ke8 {[%clk 0:01:24.4]}
84. Qg8+ {[%clk 0:00:02.2]} 84... Kd7 {[%clk 0:01:25.3]} 85. Qxf7+ {[%clk
0:00:02.8]} 85... Kc6 {[%clk 0:01:26.2]} 86. Qxe6+ {[%clk 0:00:02.4]} 86... Kxc5
{[%clk 0:01:26.9]} 87. Qd6+ {[%clk 0:00:03]} 87... Kc4 {[%clk 0:01:27.6]} 88.
Qe6+ {[%clk 0:00:01.6]} 88... Kc3 {[%clk 0:01:28.1]} 0-1